[Event "Titled Tuesday Blitz December 13 Early 2022"]
[White "Mkrtchian, Lilit"]
[Black "Mogirzan, Matei-Valeriu"]
[WhiteFideId "13300601"]
[BlackFideId "1257455"]
[WhiteElo "2316"]
[BlackElo "1733"]
[Result "0-1"]
[Round "03"]
[TimeControl "180+1"]
[Date "2022.12.14"]
[WhiteClock "0:00:02"]
[BlackClock "0:00:06"]

1. Nf3 {[%clk 0:03:00]}  Nf6 {[%clk 0:02:59]} 2. g3 {[%clk 0:03:00]}  b6 {[%clk 0:02:58]} 3. Bg2 {[%clk 0:03:00]}  Bb7 {[%clk 0:02:58]} 4. O-O {[%clk 0:02:59]}  e6 {[%clk 0:02:58]} 5. c4 {[%clk 0:02:58]}  d5 {[%clk 0:02:57]} 6. cxd5 {[%clk 0:02:54]}  exd5 {[%clk 0:02:57]} 7. d4 {[%clk 0:02:54]}  Nbd7 {[%clk 0:02:56]} 8. Nc3 {[%clk 0:02:52]}  c6 {[%clk 0:02:53]} 9. Qc2 {[%clk 0:02:28]}  Bb4 {[%clk 0:02:46]} 10. Ne5 {[%clk 0:02:01]}  O-O {[%clk 0:02:42]} 11. Bg5 {[%clk 0:01:50]}  Be7 {[%clk 0:02:28]} 12. e4 {[%clk 0:01:13]}  dxe4 {[%clk 0:02:19]} 13. Nxe4 {[%clk 0:01:13]}  Nxe4 {[%clk 0:02:07]} 14. Qxe4 {[%clk 0:01:10]}  Bxg5 {[%clk 0:01:58]} 15. Nxc6 {[%clk 0:00:53]}  Bxc6 {[%clk 0:01:41]} 16. Qxc6 {[%clk 0:00:53]}  Rc8 {[%clk 0:01:41]} 17. Qa4 {[%clk 0:00:44]}  Bf6 {[%clk 0:01:29]} 18. Rad1 {[%clk 0:00:42]}  a5 {[%clk 0:01:15]} 19. Rd2 {[%clk 0:00:38]}  Qc7 {[%clk 0:00:59]} 20. h4 {[%clk 0:00:33]}  g6 {[%clk 0:00:57]} 21. Qb5 {[%clk 0:00:29]}  Nb8 {[%clk 0:00:46]} 22. Re1 {[%clk 0:00:18]}  Qd6 {[%clk 0:00:40]} 23. Red1 {[%clk 0:00:12]}  Bg7 {[%clk 0:00:30]} 24. Qg5 {[%clk 0:00:09]}  Nc6 {[%clk 0:00:22]} 25. Qg4 {[%clk 0:00:08]}  f5 {[%clk 0:00:17]} 26. Qf3 {[%clk 0:00:07]}  Nxd4 {[%clk 0:00:09]} 27. Qd5+ {[%clk 0:00:05]}  Qxd5 {[%clk 0:00:09]} 28. Bxd5+ {[%clk 0:00:06]}  Kh8 {[%clk 0:00:10]} 29. Rxd4 {[%clk 0:00:05]}  Bxd4 {[%clk 0:00:10]} 30. Rxd4 {[%clk 0:00:05]}  Rfd8 {[%clk 0:00:11]} 31. Rd3 {[%clk 0:00:03]}  Rc5 {[%clk 0:00:05]} 32. Bc4 {[%clk 0:00:02]}  Rxd3 {[%clk 0:00:05]} 33. Bxd3 {[%clk 0:00:03]}  Rd5 {[%clk 0:00:06]} 34. Bc4 {[%clk 0:00:02]}  Rd2 {[%clk 0:00:06]} 0-1


[Site "https://www.chess.com"]

[Event "Titled Tuesday Blitz December 13 Early 2022"]
[White "Mortazavi, Ali"]
[Black "Madaminov, Mukhiddin"]
[WhiteFideId "401323"]
[BlackFideId "14210703"]
[WhiteElo "2339"]
[BlackElo "2333"]
[Result "0-1"]
[Round "03"]
[TimeControl "180+1"]
[Date "2022.12.14"]
[WhiteClock "0:00:08"]
[BlackClock "0:01:41"]

1. Nf3 {[%clk 0:02:54]}  Nf6 {[%clk 0:03:00]} 2. g3 {[%clk 0:02:54]}  g6 {[%clk 0:03:00]} 3. Bg2 {[%clk 0:02:55]}  Bg7 {[%clk 0:03:01]} 4. O-O {[%clk 0:02:56]}  O-O {[%clk 0:03:01]} 5. d3 {[%clk 0:02:57]}  d5 {[%clk 0:02:59]} 6. Nbd2 {[%clk 0:02:52]}  c5 {[%clk 0:02:57]} 7. e3 {[%clk 0:02:52]}  Nc6 {[%clk 0:02:57]} 8. e4 {[%clk 0:02:53]}  e5 {[%clk 0:02:55]} 9. c3 {[%clk 0:02:52]}  h6 {[%clk 0:02:55]} 10. Qa4 {[%clk 0:02:51]}  Qc7 {[%clk 0:02:53]} 11. b4 {[%clk 0:02:35]}  c4 {[%clk 0:02:37]} 12. dxc4 {[%clk 0:01:51]}  Nxe4 {[%clk 0:02:36]} 13. Nxe4 {[%clk 0:01:49]}  dxe4 {[%clk 0:02:35]} 14. Ne1 {[%clk 0:01:43]}  f5 {[%clk 0:02:32]} 15. c5 {[%clk 0:01:40]}  Be6 {[%clk 0:02:29]} 16. Nc2 {[%clk 0:01:25]}  Rfd8 {[%clk 0:02:28]} 17. Na3 {[%clk 0:01:12]}  a6 {[%clk 0:02:23]} 18. Re1 {[%clk 0:01:06]}  Rd3 {[%clk 0:02:12]} 19. Qc2 {[%clk 0:00:30]}  Rad8 {[%clk 0:02:07]} 20. g4 {[%clk 0:00:27]}  Qf7 {[%clk 0:01:53]} 21. Qe2 {[%clk 0:00:24]}  Rxc3 {[%clk 0:01:50]} 22. gxf5 {[%clk 0:00:19]}  gxf5 {[%clk 0:01:50]} 23. Kh1 {[%clk 0:00:20]}  Nd4 {[%clk 0:01:50]} 24. Qb2 {[%clk 0:00:16]}  Rd3 {[%clk 0:01:49]} 25. Be3 {[%clk 0:00:12]}  Kh7 {[%clk 0:01:45]} 26. Rg1 {[%clk 0:00:11]}  Nf3 {[%clk 0:01:42]} 27. Bxf3 {[%clk 0:00:11]}  exf3 {[%clk 0:01:42]} 28. Rac1 {[%clk 0:00:08]}  f4 {[%clk 0:01:41]} 0-1


[Site "https://www.chess.com"]

[Event "Titled Tuesday Blitz December 13 Early 2022"]
[White "Movahed, Sina"]
[Black "Minko, Dmitry"]
[WhiteFideId "42520835"]
[BlackFideId "24188468"]
[WhiteElo "2225"]
[BlackElo "2147"]
[Result "1-0"]
[Round "03"]
[TimeControl "180+1"]
[Date "2022.12.14"]
[WhiteClock "0:00:51"]
[BlackClock "0:00:05"]

1. Nf3 {[%clk 0:03:00]}  Nf6 {[%clk 0:02:57]} 2. g3 {[%clk 0:02:59]}  d5 {[%clk 0:02:57]} 3. Bg2 {[%clk 0:02:59]}  c5 {[%clk 0:02:57]} 4. O-O {[%clk 0:03:00]}  e6 {[%clk 0:02:57]} 5. c4 {[%clk 0:02:58]}  Nbd7 {[%clk 0:02:47]} 6. cxd5 {[%clk 0:02:51]}  exd5 {[%clk 0:02:42]} 7. d4 {[%clk 0:02:51]}  b6 {[%clk 0:02:40]} 8. Nc3 {[%clk 0:02:50]}  Bb7 {[%clk 0:02:40]} 9. Bf4 {[%clk 0:02:50]}  Be7 {[%clk 0:02:40]} 10. Nb5 {[%clk 0:02:50]}  O-O {[%clk 0:02:36]} 11. Bc7 {[%clk 0:02:43]}  Qc8 {[%clk 0:02:31]} 12. Bf4 {[%clk 0:02:42]}  Ne4 {[%clk 0:02:15]} 13. dxc5 {[%clk 0:02:37]}  bxc5 {[%clk 0:02:12]} 14. Nc7 {[%clk 0:02:36]}  Ndf6 {[%clk 0:01:56]} 15. Nxa8 {[%clk 0:02:35]}  Qxa8 {[%clk 0:01:57]} 16. Nd2 {[%clk 0:02:30]}  h6 {[%clk 0:01:54]} 17. Nxe4 {[%clk 0:02:28]}  Nxe4 {[%clk 0:01:54]} 18. Rc1 {[%clk 0:02:27]}  Bf6 {[%clk 0:01:54]} 19. b3 {[%clk 0:02:26]}  Nc3 {[%clk 0:01:49]} 20. Qd3 {[%clk 0:02:17]}  d4 {[%clk 0:01:46]} 21. Bxb7 {[%clk 0:02:13]}  Qxb7 {[%clk 0:01:47]} 22. Bd2 {[%clk 0:02:13]}  Nxa2 {[%clk 0:01:46]} 23. Rxc5 {[%clk 0:02:12]}  Nc3 {[%clk 0:01:41]} 24. Qc4 {[%clk 0:01:55]}  Ne4 {[%clk 0:01:26]} 25. Rc7 {[%clk 0:01:55]}  Qb8 {[%clk 0:01:01]} 26. Bb4 {[%clk 0:01:52]}  Be5 {[%clk 0:00:54]} 27. Bxf8 {[%clk 0:01:40]}  Qxc7 {[%clk 0:00:50]} 28. Qxc7 {[%clk 0:01:39]}  Bxc7 {[%clk 0:00:51]} 29. Bb4 {[%clk 0:01:37]}  Bb6 {[%clk 0:00:49]} 30. Kg2 {[%clk 0:01:38]}  f5 {[%clk 0:00:49]} 31. f3 {[%clk 0:01:37]}  Nf6 {[%clk 0:00:49]} 32. Rc1 {[%clk 0:01:36]}  Nd5 {[%clk 0:00:49]} 33. Bd2 {[%clk 0:01:37]}  Kf7 {[%clk 0:00:48]} 34. Rc6 {[%clk 0:01:36]}  Nc7 {[%clk 0:00:34]} 35. f4 {[%clk 0:01:28]}  Na6 {[%clk 0:00:31]} 36. b4 {[%clk 0:01:26]}  Nc7 {[%clk 0:00:31]} 37. Kf3 {[%clk 0:01:26]}  Nd5 {[%clk 0:00:23]} 38. g4 {[%clk 0:01:25]}  fxg4+ {[%clk 0:00:23]} 39. Kxg4 {[%clk 0:01:26]}  Ne7 {[%clk 0:00:23]} 40. Rd6 {[%clk 0:01:25]}  g6 {[%clk 0:00:22]} 41. h4 {[%clk 0:01:21]}  Nf5 {[%clk 0:00:22]} 42. Rd7+ {[%clk 0:01:18]}  Ke6 {[%clk 0:00:21]} 43. Rh7 {[%clk 0:01:17]}  h5+ {[%clk 0:00:07]} 44. Kg5 {[%clk 0:01:17]}  Ne7 {[%clk 0:00:06]} 45. Rg7 {[%clk 0:00:59]}  Bd8 {[%clk 0:00:04]} 46. Rxg6+ {[%clk 0:00:59]}  Nxg6+ {[%clk 0:00:05]} 47. Kxg6 {[%clk 0:01:00]}  Bxh4 {[%clk 0:00:04]} 48. Kxh5 {[%clk 0:01:00]}  Be7 {[%clk 0:00:03]} 49. Kg6 {[%clk 0:01:00]}  a6 {[%clk 0:00:04]} 50. f5+ {[%clk 0:01:01]}  Ke5 {[%clk 0:00:04]} 51. Be1 {[%clk 0:00:54]}  Ke4 {[%clk 0:00:01]} 52. f6 {[%clk 0:00:54]}  Bxf6 {[%clk 0:00:02]} 53. Kxf6 {[%clk 0:00:55]}  Ke3 {[%clk 0:00:02]} 54. Ke5 {[%clk 0:00:53]}  d3 {[%clk 0:00:02]} 55. exd3 {[%clk 0:00:53]}  Kxd3 {[%clk 0:00:03]} 56. Kd5 {[%clk 0:00:52]}  Kc2 {[%clk 0:00:03]} 57. Kc5 {[%clk 0:00:52]}  Kb3 {[%clk 0:00:04]} 58. Kb6 {[%clk 0:00:52]}  a5 {[%clk 0:00:05]} 59. bxa5 {[%clk 0:00:51]} 1-0


[Site "https://www.chess.com"]

[Event "Titled Tuesday Blitz December 13 Early 2022"]
[White "Musovic, Armin"]
[Black "Fier, Alexandr"]
[WhiteFideId "939935"]
[BlackFideId "2107139"]
[WhiteElo "2288"]
[BlackElo "2612"]
[Result "0-1"]
[Round "03"]
[TimeControl "180+1"]
[Date "2022.12.14"]
[WhiteClock "0:02:51"]
[BlackClock "0:02:57"]

1. a3 {[%clk 0:03:00]}  d5 {[%clk 0:02:59]} 2. Nc3 {[%clk 0:03:01]}  d4 {[%clk 0:02:59]} 3. Ne4 {[%clk 0:03:01]}  e5 {[%clk 0:02:59]} 4. Ng3 {[%clk 0:03:01]}  f5 {[%clk 0:02:59]} 5. e4 {[%clk 0:03:02]}  dxe3 {[%clk 0:02:58]} 6. fxe3 {[%clk 0:03:01]}  Nf6 {[%clk 0:02:58]} 7. Bc4 {[%clk 0:03:01]}  Bd6 {[%clk 0:02:58]} 8. Nf3 {[%clk 0:02:55]}  h5 {[%clk 0:02:58]} 9. h4 {[%clk 0:02:52]}  e4 {[%clk 0:02:57]} 10. Bf7+ {[%clk 0:02:52]}  Kxf7 {[%clk 0:02:57]} 11. Ng5+ {[%clk 0:02:52]}  Kg6 {[%clk 0:02:57]} 12. Kf2 {[%clk 0:02:50]}  Ng4+ {[%clk 0:02:57]} 13. Qxg4 {[%clk 0:02:51]} 0-1


[Site "https://www.chess.com"]

[Event "Titled Tuesday Blitz December 13 Early 2022"]
[White "Nakamura, Hikaru"]
[Black "Matveeva, Olga"]
[WhiteFideId "2016192"]
[BlackFideId "24107018"]
[WhiteElo "2909"]
[BlackElo "2056"]
[Result "1-0"]
[Round "03"]
[TimeControl "180+1"]
[Date "2022.12.14"]
[WhiteClock "0:02:44"]
[BlackClock "0:01:36"]

1. e4 {[%clk 0:03:00]}  e6 {[%clk 0:03:00]} 2. Nc3 {[%clk 0:02:58]}  d5 {[%clk 0:02:59]} 3. d4 {[%clk 0:02:59]}  Nf6 {[%clk 0:02:57]} 4. Bg5 {[%clk 0:02:59]}  Bb4 {[%clk 0:02:56]} 5. e5 {[%clk 0:02:59]}  h6 {[%clk 0:02:56]} 6. Bd2 {[%clk 0:02:59]}  Bxc3 {[%clk 0:02:56]} 7. bxc3 {[%clk 0:03:00]}  Ne4 {[%clk 0:02:56]} 8. Qg4 {[%clk 0:03:00]}  Kf8 {[%clk 0:02:54]} 9. Bd3 {[%clk 0:02:59]}  Nxd2 {[%clk 0:02:53]} 10. Kxd2 {[%clk 0:03:00]}  c5 {[%clk 0:02:53]} 11. h4 {[%clk 0:03:00]}  c4 {[%clk 0:02:52]} 12. Be2 {[%clk 0:02:59]}  Bd7 {[%clk 0:02:50]} 13. Rh3 {[%clk 0:02:59]}  b5 {[%clk 0:02:48]} 14. Rg3 {[%clk 0:02:59]}  Rg8 {[%clk 0:02:42]} 15. Nh3 {[%clk 0:02:57]}  a5 {[%clk 0:02:40]} 16. Nf4 {[%clk 0:02:53]}  b4 {[%clk 0:02:33]} 17. Rf3 {[%clk 0:02:52]}  Ke8 {[%clk 0:02:15]} 18. Nh5 {[%clk 0:02:51]}  bxc3+ {[%clk 0:02:10]} 19. Ke3 {[%clk 0:02:51]}  Qe7 {[%clk 0:02:02]} 20. Nf6+ {[%clk 0:02:49]}  gxf6 {[%clk 0:01:53]} 21. Qxg8+ {[%clk 0:02:50]}  Qf8 {[%clk 0:01:53]} 22. Qxf8+ {[%clk 0:02:49]}  Kxf8 {[%clk 0:01:54]} 23. Rxf6 {[%clk 0:02:49]}  Kg7 {[%clk 0:01:51]} 24. Rb1 {[%clk 0:02:47]}  Nc6 {[%clk 0:01:50]} 25. Rb7 {[%clk 0:02:46]}  Rd8 {[%clk 0:01:47]} 26. Bh5 {[%clk 0:02:46]}  Be8 {[%clk 0:01:36]} 27. Bxf7 {[%clk 0:02:44]} 1-0


[Site "https://www.chess.com"]

[Event "Titled Tuesday Blitz December 13 Early 2022"]
[White "Navara, David"]
[Black "Oganian, Miran"]
[WhiteFideId "309095"]
[BlackFideId "4122488"]
[WhiteElo "2676"]
[BlackElo "2323"]
[Result "1-0"]
[Round "03"]
[TimeControl "180+1"]
[Date "2022.12.13"]
[WhiteClock "0:00:10"]
[BlackClock "0:00:13"]

1. d4 {[%clk 0:03:00]}  e6 {[%clk 0:03:00]} 2. e4 {[%clk 0:03:00]}  d5 {[%clk 0:03:00]} 3. Nc3 {[%clk 0:03:01]}  Bb4 {[%clk 0:02:59]} 4. e5 {[%clk 0:03:01]}  c5 {[%clk 0:03:00]} 5. Bd2 {[%clk 0:03:01]}  Ne7 {[%clk 0:02:59]} 6. a3 {[%clk 0:02:59]}  Ba5 {[%clk 0:02:58]} 7. Nb5 {[%clk 0:02:42]}  Bxd2+ {[%clk 0:02:53]} 8. Qxd2 {[%clk 0:02:43]}  O-O {[%clk 0:02:53]} 9. f4 {[%clk 0:02:38]}  Nbc6 {[%clk 0:02:53]} 10. Nf3 {[%clk 0:02:37]}  a6 {[%clk 0:02:28]} 11. Nd6 {[%clk 0:02:35]}  Nxd4 {[%clk 0:02:27]} 12. Nxd4 {[%clk 0:02:35]}  cxd4 {[%clk 0:02:28]} 13. Bd3 {[%clk 0:02:20]}  Nc6 {[%clk 0:02:25]} 14. O-O {[%clk 0:02:19]}  f5 {[%clk 0:02:23]} 15. b4 {[%clk 0:01:46]}  Qc7 {[%clk 0:01:59]} 16. Kh1 {[%clk 0:01:26]}  Bd7 {[%clk 0:01:46]} 17. g4 {[%clk 0:01:26]}  Ne7 {[%clk 0:01:45]} 18. Rg1 {[%clk 0:01:02]}  Nc8 {[%clk 0:01:34]} 19. gxf5 {[%clk 0:00:31]}  exf5 {[%clk 0:01:04]} 20. Nxc8 {[%clk 0:00:17]}  Raxc8 {[%clk 0:01:03]} 21. Qf2 {[%clk 0:00:18]}  Bb5 {[%clk 0:00:56]} 22. Qxd4 {[%clk 0:00:17]}  Bxd3 {[%clk 0:00:56]} 23. cxd3 {[%clk 0:00:18]}  Kh8 {[%clk 0:00:44]} 24. Ra2 {[%clk 0:00:13]}  Qc3 {[%clk 0:00:41]} 25. Qxd5 {[%clk 0:00:13]}  Rc7 {[%clk 0:00:28]} 26. Rag2 {[%clk 0:00:11]}  g6 {[%clk 0:00:25]} 27. Qd6 {[%clk 0:00:10]}  Rff7 {[%clk 0:00:08]} 28. e6 {[%clk 0:00:09]}  Rg7 {[%clk 0:00:06]} 29. d4 {[%clk 0:00:07]}  h6 {[%clk 0:00:03]} 30. Qe5 {[%clk 0:00:04]}  Kh7 {[%clk 0:00:03]} 31. d5 {[%clk 0:00:05]}  Qxe5 {[%clk 0:00:03]} 32. fxe5 {[%clk 0:00:06]}  Rc3 {[%clk 0:00:03]} 33. d6 {[%clk 0:00:05]}  Re3 {[%clk 0:00:03]} 34. d7 {[%clk 0:00:04]}  Rg8 {[%clk 0:00:04]} 35. e7 {[%clk 0:00:03]}  f4 {[%clk 0:00:05]} 36. d8=Q {[%clk 0:00:04]}  f3 {[%clk 0:00:06]} 37. e8=Q {[%clk 0:00:03]}  Re1 {[%clk 0:00:07]} 38. Rxg6 {[%clk 0:00:03]}  Rxg1+ {[%clk 0:00:08]} 39. Kxg1 {[%clk 0:00:02]}  Rg7 {[%clk 0:00:09]} 40. Kf2 {[%clk 0:00:02]}  Rxg6 {[%clk 0:00:09]} 41. Qxg6+ {[%clk 0:00:03]}  Kxg6 {[%clk 0:00:09]} 42. Qf6+ {[%clk 0:00:04]}  Kh5 {[%clk 0:00:10]} 43. Qf7+ {[%clk 0:00:04]}  Kg4 {[%clk 0:00:11]} 44. e6 {[%clk 0:00:05]}  Kh3 {[%clk 0:00:12]} 45. e7 {[%clk 0:00:06]}  h5 {[%clk 0:00:13]} 46. e8=Q {[%clk 0:00:07]}  h4 {[%clk 0:00:13]} 47. Qf5+ {[%clk 0:00:07]}  Kxh2 {[%clk 0:00:13]} 48. Qf4+ {[%clk 0:00:08]}  Kh1 {[%clk 0:00:14]} 49. Qxf3+ {[%clk 0:00:09]}  Kh2 {[%clk 0:00:13]} 50. Qg2# {[%clk 0:00:10]} 1-0


[Site "https://www.chess.com"]

[Event "Titled Tuesday Blitz December 13 Early 2022"]
[White "Ovchinnikov, Vsevolod"]
[Black "Zaksaite, Salomeja"]
[WhiteFideId "24176842"]
[BlackFideId "12801496"]
[WhiteElo "2376"]
[BlackElo "2079"]
[Result "1-0"]
[Round "03"]
[TimeControl "180+1"]
[Date "2022.12.14"]
[WhiteClock "0:00:18"]
[BlackClock "0:00:09"]

1. d4 {[%clk 0:03:00]}  Nf6 {[%clk 0:02:59]} 2. c4 {[%clk 0:03:01]}  g6 {[%clk 0:02:59]} 3. Nc3 {[%clk 0:03:01]}  d5 {[%clk 0:02:59]} 4. Nf3 {[%clk 0:03:01]}  Bg7 {[%clk 0:02:59]} 5. h4 {[%clk 0:03:02]}  c5 {[%clk 0:02:57]} 6. dxc5 {[%clk 0:03:00]}  Qa5 {[%clk 0:02:39]} 7. cxd5 {[%clk 0:02:48]}  O-O {[%clk 0:02:20]} 8. Bd2 {[%clk 0:01:45]}  Qxc5 {[%clk 0:02:12]} 9. e4 {[%clk 0:01:45]}  Ng4 {[%clk 0:02:08]} 10. Qe2 {[%clk 0:01:45]}  b6 {[%clk 0:02:04]} 11. Nh2 {[%clk 0:01:19]}  Nxh2 {[%clk 0:01:53]} 12. Rxh2 {[%clk 0:01:20]}  Ba6 {[%clk 0:01:43]} 13. Qe3 {[%clk 0:00:45]}  Qd6 {[%clk 0:01:08]} 14. g3 {[%clk 0:00:38]}  Bxf1 {[%clk 0:01:06]} 15. Kxf1 {[%clk 0:00:39]}  Nd7 {[%clk 0:00:58]} 16. f4 {[%clk 0:00:39]}  e6 {[%clk 0:00:38]} 17. e5 {[%clk 0:00:30]}  Nxe5 {[%clk 0:00:29]} 18. fxe5 {[%clk 0:00:29]}  Bxe5 {[%clk 0:00:29]} 19. Re2 {[%clk 0:00:18]}  Bxg3 {[%clk 0:00:27]} 20. Ne4 {[%clk 0:00:18]}  Qxd5 {[%clk 0:00:09]} 21. Nf6+ {[%clk 0:00:18]} 1-0


[Site "https://www.chess.com"]

[Event "Titled Tuesday Blitz December 13 Early 2022"]
[White "Pakleza, Zbigniew"]
[Black "Przybylski, Wojciech"]
[WhiteFideId "1119290"]
[BlackFideId "1117599"]
[WhiteElo "2828"]
[BlackElo "2395"]
[Result "1-0"]
[Round "03"]
[TimeControl "180+1"]
[Date "2022.12.14"]
[WhiteClock "0:00:06"]
[BlackClock "0:00:02"]

1. d4 {[%clk 0:02:58]}  Nf6 {[%clk 0:02:59]} 2. Nf3 {[%clk 0:02:58]}  e6 {[%clk 0:02:59]} 3. Bf4 {[%clk 0:02:58]}  Be7 {[%clk 0:02:58]} 4. e3 {[%clk 0:02:59]}  O-O {[%clk 0:02:58]} 5. h3 {[%clk 0:02:59]}  b6 {[%clk 0:02:59]} 6. Bd3 {[%clk 0:02:59]}  Bb7 {[%clk 0:02:59]} 7. O-O {[%clk 0:02:59]}  c5 {[%clk 0:02:59]} 8. c3 {[%clk 0:03:00]}  Nc6 {[%clk 0:02:59]} 9. a3 {[%clk 0:02:57]}  Rc8 {[%clk 0:02:58]} 10. Nbd2 {[%clk 0:02:55]}  Re8 {[%clk 0:02:58]} 11. Qe2 {[%clk 0:02:54]}  d5 {[%clk 0:02:56]} 12. Ne5 {[%clk 0:02:52]}  Nxe5 {[%clk 0:02:44]} 13. dxe5 {[%clk 0:02:49]}  Nd7 {[%clk 0:02:45]} 14. e4 {[%clk 0:02:43]}  Bf8 {[%clk 0:02:37]} 15. exd5 {[%clk 0:02:34]}  exd5 {[%clk 0:02:35]} 16. Rfe1 {[%clk 0:02:28]}  g6 {[%clk 0:02:32]} 17. Qg4 {[%clk 0:02:16]}  Rc6 {[%clk 0:02:18]} 18. Nf3 {[%clk 0:02:06]}  Bc8 {[%clk 0:02:10]} 19. Qg3 {[%clk 0:01:58]}  Bg7 {[%clk 0:01:46]} 20. Rad1 {[%clk 0:01:43]}  a6 {[%clk 0:01:39]} 21. Bb1 {[%clk 0:01:41]}  Nf8 {[%clk 0:01:39]} 22. Bg5 {[%clk 0:01:31]}  Qd7 {[%clk 0:01:26]} 23. Ba2 {[%clk 0:01:28]}  c4 {[%clk 0:01:26]} 24. Qh4 {[%clk 0:01:18]}  Rce6 {[%clk 0:00:55]} 25. Bxc4 {[%clk 0:01:13]}  Bb7 {[%clk 0:00:52]} 26. Bxd5 {[%clk 0:01:07]}  Bxd5 {[%clk 0:00:32]} 27. c4 {[%clk 0:01:08]}  f6 {[%clk 0:00:07]} 28. Bc1 {[%clk 0:00:38]}  fxe5 {[%clk 0:00:06]} 29. cxd5 {[%clk 0:00:33]}  R6e7 {[%clk 0:00:07]} 30. Ng5 {[%clk 0:00:30]}  h6 {[%clk 0:00:04]} 31. Ne4 {[%clk 0:00:30]}  g5 {[%clk 0:00:04]} 32. Qg3 {[%clk 0:00:27]}  Rf7 {[%clk 0:00:04]} 33. Qb3 {[%clk 0:00:25]}  Kh7 {[%clk 0:00:04]} 34. Qxb6 {[%clk 0:00:23]}  Ng6 {[%clk 0:00:04]} 35. Qxa6 {[%clk 0:00:20]}  Ref8 {[%clk 0:00:05]} 36. Qc6 {[%clk 0:00:16]}  Qe7 {[%clk 0:00:05]} 37. d6 {[%clk 0:00:14]}  Qe6 {[%clk 0:00:05]} 38. Qd5 {[%clk 0:00:15]}  Qf5 {[%clk 0:00:05]} 39. d7 {[%clk 0:00:12]}  Rd8 {[%clk 0:00:06]} 40. Be3 {[%clk 0:00:10]}  Rfxd7 {[%clk 0:00:06]} 41. Qb3 {[%clk 0:00:05]}  Rxd1 {[%clk 0:00:05]} 42. Rxd1 {[%clk 0:00:06]}  Rxd1+ {[%clk 0:00:05]} 43. Qxd1 {[%clk 0:00:07]}  Qxe4 {[%clk 0:00:06]} 44. b4 {[%clk 0:00:05]}  Nf4 {[%clk 0:00:06]} 45. Bxf4 {[%clk 0:00:04]}  gxf4 {[%clk 0:00:07]} 46. b5 {[%clk 0:00:03]}  Qb7 {[%clk 0:00:06]} 47. a4 {[%clk 0:00:02]}  e4 {[%clk 0:00:07]} 48. Qb3 {[%clk 0:00:02]}  Bd4 {[%clk 0:00:03]} 49. Qc4 {[%clk 0:00:01]}  Qb6 {[%clk 0:00:04]} 50. Qf7+ {[%clk 0:00:01]}  Kh8 {[%clk 0:00:04]} 51. Qf8+ {[%clk 0:00:01]}  Kh7 {[%clk 0:00:04]} 52. Qf7+ {[%clk 0:00:02]}  Kh8 {[%clk 0:00:04]} 53. Qf8+ {[%clk 0:00:03]}  Kh7 {[%clk 0:00:03]} 54. Qf5+ {[%clk 0:00:04]}  Kg7 {[%clk 0:00:03]} 55. Qxf4 {[%clk 0:00:04]}  e3 {[%clk 0:00:03]} 56. Qg4+ {[%clk 0:00:04]}  Kf6 {[%clk 0:00:04]} 57. Qf3+ {[%clk 0:00:04]}  Kg6 {[%clk 0:00:04]} 58. fxe3 {[%clk 0:00:05]}  Bxe3+ {[%clk 0:00:04]} 59. Kf1 {[%clk 0:00:06]}  Bd4 {[%clk 0:00:04]} 60. Qc6+ {[%clk 0:00:05]}  Qxc6 {[%clk 0:00:04]} 61. bxc6 {[%clk 0:00:06]}  Bb6 {[%clk 0:00:05]} 62. Ke2 {[%clk 0:00:06]}  Kf5 {[%clk 0:00:05]} 63. Kd3 {[%clk 0:00:07]}  Ke5 {[%clk 0:00:05]} 64. Kc4 {[%clk 0:00:07]}  Kd6 {[%clk 0:00:06]} 65. Kb5 {[%clk 0:00:08]}  Be3 {[%clk 0:00:06]} 66. g4 {[%clk 0:00:04]}  Bf2 {[%clk 0:00:06]} 67. a5 {[%clk 0:00:03]}  Kc7 {[%clk 0:00:06]} 68. a6 {[%clk 0:00:03]}  Kd6 {[%clk 0:00:06]} 69. h4 {[%clk 0:00:03]}  Kc7 {[%clk 0:00:06]} 70. g5 {[%clk 0:00:03]}  hxg5 {[%clk 0:00:04]} 71. hxg5 {[%clk 0:00:04]}  Kb8 {[%clk 0:00:04]} 72. g6 {[%clk 0:00:04]}  Bd4 {[%clk 0:00:04]} 73. Kc4 {[%clk 0:00:04]}  Be5 {[%clk 0:00:02]} 74. Kd5 {[%clk 0:00:05]}  Bc3 {[%clk 0:00:02]} 75. Ke6 {[%clk 0:00:06]}  Kc7 {[%clk 0:00:02]} 76. a7 {[%clk 0:00:06]} 1-0


[Site "https://www.chess.com"]

[Event "Titled Tuesday Blitz December 13 Early 2022"]
[White "Paravyan, David"]
[Black "Tarlabasi, Emirhan"]
[WhiteFideId "4194985"]
[BlackFideId "6350275"]
[WhiteElo "3002"]
[BlackElo "2619"]
[Result "1-0"]
[Round "03"]
[TimeControl "180+1"]
[Date "2022.12.14"]
[WhiteClock "0:00:17"]
[BlackClock "0:00:10"]

1. e4 {[%clk 0:03:00]}  c5 {[%clk 0:02:59]} 2. Nf3 {[%clk 0:03:01]}  e6 {[%clk 0:02:59]} 3. d4 {[%clk 0:03:01]}  cxd4 {[%clk 0:03:00]} 4. Nxd4 {[%clk 0:03:02]}  Nf6 {[%clk 0:03:01]} 5. Nc3 {[%clk 0:03:02]}  Nc6 {[%clk 0:03:01]} 6. Nxc6 {[%clk 0:03:03]}  bxc6 {[%clk 0:03:02]} 7. e5 {[%clk 0:03:03]}  Nd5 {[%clk 0:03:03]} 8. Ne4 {[%clk 0:03:04]}  Qc7 {[%clk 0:03:03]} 9. f4 {[%clk 0:03:04]}  Qb6 {[%clk 0:03:04]} 10. a3 {[%clk 0:03:04]}  f5 {[%clk 0:03:00]} 11. exf6 {[%clk 0:02:59]}  Nxf6 {[%clk 0:03:01]} 12. Nxf6+ {[%clk 0:03:00]}  gxf6 {[%clk 0:03:01]} 13. Qh5+ {[%clk 0:03:00]}  Kd8 {[%clk 0:02:59]} 14. Be2 {[%clk 0:03:01]}  d5 {[%clk 0:02:54]} 15. Bd2 {[%clk 0:02:34]}  Bd6 {[%clk 0:02:28]} 16. Bc3 {[%clk 0:02:25]}  Be7 {[%clk 0:02:21]} 17. O-O-O {[%clk 0:02:16]}  Ba6 {[%clk 0:02:14]} 18. Bxa6 {[%clk 0:02:14]}  Qxa6 {[%clk 0:02:15]} 19. Rhe1 {[%clk 0:02:09]}  Kd7 {[%clk 0:02:08]} 20. Qf7 {[%clk 0:02:04]}  e5 {[%clk 0:01:49]} 21. fxe5 {[%clk 0:01:58]}  Raf8 {[%clk 0:01:42]} 22. Qh5 {[%clk 0:01:50]}  fxe5 {[%clk 0:01:32]} 23. Rxe5 {[%clk 0:01:42]}  Bf6 {[%clk 0:01:28]} 24. Qf5+ {[%clk 0:01:03]}  Kc7 {[%clk 0:01:26]} 25. Qe6 {[%clk 0:01:03]}  Bxe5 {[%clk 0:00:54]} 26. Bxe5+ {[%clk 0:01:04]}  Kb7 {[%clk 0:00:54]} 27. Bxh8 {[%clk 0:01:03]}  Rxh8 {[%clk 0:00:55]} 28. Qd7+ {[%clk 0:00:58]}  Ka8 {[%clk 0:00:53]} 29. Re1 {[%clk 0:00:58]}  Rf8 {[%clk 0:00:48]} 30. g3 {[%clk 0:00:47]}  Rf1 {[%clk 0:00:43]} 31. Qe8+ {[%clk 0:00:45]}  Kb7 {[%clk 0:00:42]} 32. Qe7+ {[%clk 0:00:46]}  Kb6 {[%clk 0:00:42]} 33. Kb1 {[%clk 0:00:37]}  h5 {[%clk 0:00:24]} 34. b3 {[%clk 0:00:37]}  Rxe1+ {[%clk 0:00:19]} 35. Qxe1 {[%clk 0:00:38]}  Qxa3 {[%clk 0:00:19]} 36. Qe3+ {[%clk 0:00:38]}  Kb7 {[%clk 0:00:17]} 37. Qg5 {[%clk 0:00:36]}  Qb4 {[%clk 0:00:14]} 38. Qxh5 {[%clk 0:00:35]}  Qe1+ {[%clk 0:00:14]} 39. Kb2 {[%clk 0:00:36]}  Qf2 {[%clk 0:00:14]} 40. Qh7+ {[%clk 0:00:33]}  Kb6 {[%clk 0:00:14]} 41. Qh8 {[%clk 0:00:34]}  a5 {[%clk 0:00:12]} 42. g4 {[%clk 0:00:32]}  a4 {[%clk 0:00:12]} 43. bxa4 {[%clk 0:00:33]}  Qf4 {[%clk 0:00:12]} 44. Qd8+ {[%clk 0:00:23]}  Kc5 {[%clk 0:00:11]} 45. Qa5+ {[%clk 0:00:21]}  Kd6 {[%clk 0:00:12]} 46. h3 {[%clk 0:00:20]}  Qd4+ {[%clk 0:00:11]} 47. Qc3 {[%clk 0:00:18]}  Qxa4 {[%clk 0:00:10]} 48. Qa3+ {[%clk 0:00:17]} 1-0


[Site "https://www.chess.com"]